Cogmind - Beta 12 *** ADVENTURER MODE // 2023.05.13 @ 18:20:58 Player: FrigidRock Result: Destroyed by as-17900 with Assembled Heavy Rifle Performance ------------- Evolutions (0) 0 Regions Visited (3) 600 Robots Destroyed (18) 90 Value Destroyed (405) 405 Prototype IDs (0) 0 Alien Tech Used (0) 0 Bonus (0) 0 TOTAL SCORE: 1095 Bonus ------- None Cogmind --------- Core Integrity 0/250 Matter 300/300 Energy 180/250 System Corruption 1% Temperature Cool (0) Movement Core (250) Ox4 Location -10/Exiles Parts ------- > --- POWER (1) -------- Ion Engine > --- PROPULSION (2) --- (None) > --- UTILITY (2) ------ Improved Heat Sink Small Storage Unit > --- WEAPON (2) ------- Makeshift Spear > --- INVENTORY (8) ---- Light Ion Engine Improved Heat Sink Medium Matter Pod (100) Experimental Sensor Array Peak State ------------ > --- POWER ------------ Ion Engine > --- PROPULSION ------- Wheel Wheel > --- UTILITY ---------- Improved Heat Sink Small Storage Unit > --- WEAPON ----------- Makeshift Spear > --- INVENTORY -------- Ion Engine Light Ion Engine Improved Heat Sink Medium Matter Pod Experimental Sensor Array [Rating: 12] Favorites ----------- Power Ion Engine Engine Ion Engine Power Core Light Nuclear Core Propulsion Wheel Leg Aluminum Leg Wheel Wheel Utility Small Storage Unit Device Improved Heat Sink Storage Small Storage Unit Weapon Small Laser Energy Gun Small Laser Ballistic Gun Assault Rifle Piercing Weapon Makeshift Spear Build | -11 -10 -10 -10 ------- Run | Jun Mat Min Exi Slots Evolved . | . . . . Power . | . . . . Propulsion . | . . . . Utility . | . . . . Weapon . | . . . . Parts Attached 19 | 9 . 9 1 Power 5 | 2 . 2 1 Engine 4 | 2 . 1 1 Core 1 | . . 1 . Reactor . | . . . . Propulsion 5 | 2 . 3 . Treads . | . . . . Leg 1 | . . 1 . Wheel 4 | 2 . 2 . Hover . | . . . . Flight . | . . . . Utility 3 | 2 . 1 . Device 2 | 1 . 1 . Storage 1 | 1 . . . Processor . | . . . . Hackware . | . . . . Protection . | . . . . Artifact . | . . . . Weapon 6 | 3 . 3 . Energy Gun 3 | 1 . 2 . Energy Cannon . | . . . . Ballistic Gun 2 | 2 . . . Ballistic Cannon . | . . . . Launcher . | . . . . Special Weapon . | . . . . Impact Weapon . | . . . . Slashing Weapon . | . . . . Piercing Weapon 1 | . . 1 . Special Melee Weapon . | . . . . Unidentified Prototypes . | . . . . Corrupted Parts 1 | . . 1 . System Corruption 1 | . . 1 . Parts Lost 7 | . . 4 3 Power 1 | . . . 1 Propulsion 3 | . . 1 2 Utility 1 | . . 1 . Weapon 2 | . . 2 . Highest Loss Streak 3 | . . 2 3 To Critical Strikes . | . . . . Average Slot Usage (%) 92 | . 100 94 82 Engine 10 | . 14 9 13 Core 2 | . . 4 . Wheel 26 | . 28 26 26 Device 13 | . 14 13 14 Storage 14 | . 14 14 14 Energy Gun 11 | . 14 15 . Ballistic Gun 5 | . 14 6 . Piercing Weapon 5 | . . 2 14 Naked Turns . | . . . . Heaviest Build 15 | 15 15 15 13 Greatest Support 20 | 20 20 20 20 Greatest Overweight (x) 4 | 1 . 1 4 Average Overweight (x) . | . . . . Largest Inventory Capacity 8 | 8 8 8 8 Average Capacity 7 | 7 8 8 8 Most Carried 5 | 1 2 5 5 Average Carried 3 | . 1 4 4 Final Capacity 8 | 8 8 8 8 Final Carried 5 | 1 2 5 4 Class Distribution -------------------- 76% | Mutant 23% | Scavenger-Mutant Dominant Class ---------------- Mutant | -10/Materials Mutant | -10/Mines Mutant | -10/Exiles Resources | -11 -10 -10 -10 ----------- Run | Jun Mat Min Exi Matter Collected 567 | 234 68 260 5 Remotely . | . . . . Salvage Created 639 | 112 . 490 37 Parts 40 | 6 . 34 . Haulers Intercepted . | . . . . Recyclers Shooed . | . . . . Parts Field Recycled . | . . . . Retrieved Matter . | . . . . Parts Self-Destructed . | . . . . Prevented . | . . . . Kills | -11 -10 -10 -10 ------- Run | Jun Mat Min Exi Combat Hostiles Destroyed 18 | . . 15 3 Melee 3 | . . . 3 Guns 15 | . . 15 . Classes Destroyed 6 | 2 . 3 1 Worker 1 | . . 1 . Tunneler 1 | 1 . . . Recycler 1 | 1 . . . Swarmer 7 | . . 7 . Grunt 8 | . . 8 . Assembled 3 | . . . 3 Best Kill Streak 3 | 2 . 3 3 Combat Bots Only 3 | . . 3 3 Max Kills in Single Turn 1 | 1 . 1 1 Gunslinging . | . . . . Exploded . | . . . . Melee 1 | . . . 1 Uniques/NPCs Destroyed . | . . . . Combat | -11 -10 -10 -10 -------- Run | Jun Mat Min Exi Damage Taken 800 | . 12 527 261 Core 260 | . . 144 116 Absorbed by Shields . | . . . . Core Remaining (%) 100 | 100 . . . Volleys Fired 47 | 4 . 43 . Largest 2 | 2 . 2 . Hottest 80 | 60 . 80 . Shots Fired 74 | 8 . 66 . Gun 74 | 8 . 66 . Cannon . | . . . . Launcher . | . . . . Special . | . . . . Kinetic 34 | 4 . 30 . Thermal 21 | . . 21 . Explosive . | . . . . Electromagnetic 19 | 4 . 15 . Robot Hit Streak 24 | 6 . 24 . Robot Miss Streak 2 | . . 2 . Penetration Max . | . . . . Secondary Targets 2 | . . 2 . Max Gunslinging Chain 1 | . . 1 . Shots Hit Robots 65 | 6 . 54 5 Core Hits 33 | 3 . 27 3 Critical Kills . | . . . . Critical Parts Destroyed . | . . . . Critical Strikes . | . . . . Melee Attacks 10 | . . . 10 Impact . | . . . . Slashing . | . . . . Piercing 10 | . . . 10 Sneak Attacks . | . . . . Combat Hostiles . | . . . . Follow-up Attacks . | . . . . Damage Inflicted 877 | 74 . 649 154 Guns 723 | 74 . 649 . Cannons . | . . . . Explosions . | . . . . Melee 154 | . . . 154 Ramming . | . . . . Kinetic 332 | 22 . 310 . Thermal 163 | . . 163 . Explosive . | . . . . Electromagnetic 228 | 52 . 176 . Impact . | . . . . Slashing . | . . . . Piercing 154 | . . . 154 Highest Corruption 1 | . . 1 1 Average Corruption 1 | . . 1 1 Corruption Purged . | . . . . Corruption Blocked . | . . . . Effects 3 | . . 3 . Message Errors 1 | . . 1 . Heat Flow Errors 1 | . . 1 . Energy Discharges 1 | . . 1 . Overload Shots . | . . . . Overflow Damage 2 | . . . 2 Projectiles . | . . . . Explosions . | . . . . Melee 2 | . . . 2 Knockbacks . | . . . . Impact . | . . . . Kinetic . | . . . . Secondary . | . . . . Self-Inflicted Damage . | . . . . Shots . | . . . . Rammed . | . . . . Targets Rammed . | . . . . Kicked . | . . . . Crushed . | . . . . Highest Temperature 102 | . . 102 3 Average Temperature 33 | . . 34 3 Received Heat Transfer 526 | . 9 297 220 Siege Activations . | . . . . Robots Corrupted . | . . . . Combat Hostiles . | . . . . Parts Fried . | . . . . Impact Corruptions . | . . . . Robots Melted . | . . . . Combat Hostiles . | . . . . Parts Melted . | . . . . Heat Transferred 375 | . . 375 . Parts Sabotaged . | . . . . Parts Stolen . | . . . . Parts Stripped . | . . . . Power Chain Reactions . | . . . . Missiles Intercepted . | . . . . Alert | -11 -10 -10 -10 ------- Run | Jun Mat Min Exi Peak Influence 370 | 10 12 370 . Initial 5 | . 5 3 . Average 155 | 1 6 203 . Maximum Alert Level 1 | . . 1 . Low Security (%) 71 | 100 100 62 . Level 1 28 | . . 37 . Level 2 . | . . . . Level 3 . | . . . . Level 4 . | . . . . Level 5 . | . . . . High Security . | . . . . Max Security . | . . . . Squads Dispatched 1 | . . 1 . Investigation 1 | . . 1 . Extermination . | . . . . Reinforcement . | . . . . Assault . | . . . . Garrison . | . . . . Intercept . | . . . . Searches Triggered . | . . . . Construction Impeded . | . . . . Haulers Reinforced . | . . . . Active Scanning Responses . | . . . . Cargo Convoy Interrupts . | . . . . Stealth | -11 -10 -10 -10 --------- Run | Jun Mat Min Exi Distress Signals . | . . . . Communications Jammed . | . . . . Distress Signals . | . . . . Times Spotted 28 | . 2 15 11 Peak Tracking Total 13 | . 2 4 13 Tactical Retreats 1 | . . . 1 Traps | -11 -10 -10 -10 ------- Run | Jun Mat Min Exi Traps Triggered . | . . . . Indirectly . | . . . . Trap Hack Attempts . | . . . . Triggered . | . . . . Disarmed . | . . . . Reprogrammed . | . . . . Reused . | . . . . Traps Extracted . | . . . . Installed . | . . . . Triggered . | . . . . Machines | -11 -10 -10 -10 ---------- Run | Jun Mat Min Exi Machines Disabled 2 | . . 1 1 Max in Single Turn 1 | . . 1 1 Machines Repaired . | . . . . Machines Sabotaged . | . . . . Overloaded Fab Kills . | . . . . Hacking | -11 -10 -10 -10 --------- Run | Jun Mat Min Exi Machines Accessed 2 | . 1 1 . Terminals 2 | . 1 1 . Fabricators . | . . . . Repair Stations . | . . . . Recycling Units . | . . . . Scanalyzers . | . . . . Garrison Access . | . . . . Total Hacks 7 | . 4 3 . Successful 2 | . 1 1 . Failed 5 | . 3 2 . Catastrophic 1 | . . 1 . Database Lockouts . | . . . . Manual 6 | . 4 2 . Terminals 7 | . 4 3 . Fabricators . | . . . . Repair Stations . | . . . . Recycling Units . | . . . . Scanalyzers . | . . . . Garrison Access . | . . . . Terminal Hacks 2 | . 1 1 . Branch Access Points 1 | . 1 . . Dispatch Records 1 | . . 1 . Fabricator Hacks . | . . . . Repair Station Hacks . | . . . . Recycling Unit Hacks . | . . . . Scanalyzer . | . . . . Garrison Access Hacks . | . . . . Unauthorized Hacks . | . . . . Terminals . | . . . . Fabricators . | . . . . Repair Stations . | . . . . Recycling Units . | . . . . Scanalyzers . | . . . . Garrison Access . | . . . . Data Cores Recovered . | . . . . Used . | . . . . Hacking Detections 2 | . 1 1 . Full Trace Events 1 | . . 1 . Feedback Events . | . . . . Feedback Blocked . | . . . . Robot Schematics Acquired . | . . . . Robots Built . | . . . . Authchips . | . . . . Time . | . . . . Total Robot Build Rating . | . . . . Part Schematics Acquired . | . . . . Parts Built . | . . . . Authchips . | . . . . Time . | . . . . Total Part Build Rating . | . . . . Parts Repaired . | . . . . Time . | . . . . Parts Recycled . | . . . . Recycled Matter . | . . . . Retrieved Matter . | . . . . Retrieved Components . | . . . . Parts Scanalyzed . | . . . . Part Schematics Acquired . | . . . . Parts Damaged . | . . . . Bothacking | -11 -10 -10 -10 ------------ Run | Jun Mat Min Exi Used RIF Installer . | . . . . Robots Hacked . | . . . . Non-combat . | . . . . Combat . | . . . . Robot Hacks Applied . | . . . . Relay Couplers Released . | . . . . Fabnet Peak Effective % . | . . . . Robots Rewired . | . . . . Allies Hacked . | . . . . Hacks Repelled . | . . . . Allies | -11 -10 -10 -10 -------- Run | Jun Mat Min Exi Total Allies 2 | . . 2 . Largest Group 2 | . . 2 1 Highest-Rated Group 46 | . . 46 31 Highest-Rated Ally 31 | . . 31 31 Total Orders . | . . . . Ally Attacks . | . . . . Total Damage . | . . . . Kills . | . . . . Allies Corrupted . | . . . . Allies Melted . | . . . . Intel | -11 -10 -10 -10 ------- Run | Jun Mat Min Exi Robot Analysis Total . | . . . . Derelict Logs Recovered 1 | . . 1 . Drone Launches . | . . . . Drone Recoveries . | . . . . Exploration | -11 -10 -10 -10 ------------- Run | Jun Mat Min Exi Turns Passed 1014 | 73 111 583 247 Spaces Moved 903 | 38 138 475 252 Core 7 | 5 . . 2 Treads . | . . . . Legs . | . . . . Wheels 896 | 33 138 475 250 Hover . | . . . . Flight . | . . . . Fastest Speed 50 | 50 80 80 80 Average Speed 80 | 77 80 80 81 Slowest Speed 250 | 100 80 95 250 Overloaded Moves . | . . . . Propulsion Burnouts . | . . . . Robots Hopped . | . . . . Cave-ins Triggered . | . . . . Exploration Rate (%) 42 | 3 18 82 68 Regions Visited 3 Branch Regions 2 Pre-discovered Areas . | . . . . Known Exits Taken 1 | . 1 . . Unknown Exits Taken 2 | 1 . 1 . Scrap Searched 2 | . . 2 . Spaces Dug . | . . . . Terrain Destroyed . | . . . . Melee . | . . . . Projectile . | . . . . AOE . | . . . . Terrain Rammed . | . . . . Walls Destroyed . | . . . . Machines Disabled . | . . . . Actions | -11 -10 -10 -10 --------- Run | Jun Mat Min Exi Total 1096 | 69 138 605 284 Wait 111 | 18 . 72 21 Move 900 | 37 137 474 252 Hop . | . . . . Pick Up 3 | . 1 2 . Fast Attach 15 | 8 . 7 . Attach 2 | . . 1 1 Detach 1 | . . 1 . Swap 2 | 1 . 1 . Drop 5 | 1 . 4 . Fire 47 | 4 . 43 . Melee 10 | . . . 10 Ram . | . . . . Kick . | . . . . Crush . | . . . . Escape Stasis . | . . . . Rewire . | . . . . Trap . | . . . . Miscellaneous . | . . . . Route ------- -11/Junkyard -10/Materials -10/Mines -10/Exiles (discovered 2 exits: *Min x2) History --------- Turn | Location | Event 16 | -11/Junkyard | Discovered new exit (range 16) 74 | -11/Junkyard | Entered Materials 92 | -10/Materials | Discovered new exit (range 16) 156 | -10/Materials | Identified exit to Mines 185 | -10/Materials | Entered Mines 316 | -10/Mines | Build established: Mutant 461 | -10/Mines | Core integrity fell below 50% 662 | -10/Mines | A weapon hastily lodged in a ceiling crevice suddenly fell to the ground 695 | -10/Mines | Found a damaged Exp. Sensor Array with a note attached 696 | -10/Mines | Found Prototype Device 743 | -10/Mines | Deemed a non-threat by the Exiles lab entrance 743 | -10/Mines | Discovered new exit (range 5) 768 | -10/Mines | Entered Exiles 768 | -10/Exiles | Accompanied by 1 ally 769 | -10/Exiles | Identified exit to Mines 789 | -10/Exiles | Met 8R-AWN 798 | -10/Exiles | Led the pair of lost Derelicts to a safe place 858 | -10/Exiles | Met EX-HEX 884 | -10/Exiles | Met EX-BIN 894 | -10/Exiles | Met EX-DEC 919 | -10/Exiles | Visited The Gauntlet 969 | -10/Exiles | Attacked by the Exiles 1009 | -10/Exiles | Core integrity fell below 20% 1015 | -10/Exiles | Destroyed by as-17900 with Assembled Heavy Rifle Last Messages --------------- ZX-C33: The latest FarCom iteration passed all tests with flying colors, we'll be weaving between patrols like ghosts in no time! I probably said something like that last time, but hopefully no one remembers what really happened. AM-PHS: That's RA-1N3's workstation, which we keep unoccupied as a tribute. RA-1N3 was always up for doing crazy stuff, the only one brave enough to try out the Chronowheel, only to never be seen again. 00968_ Testing Chamber Shield damaged. 00969_ EXILES: Hostile robot within lab perimeter. Defensive protocols time, folks! 00993_ Ion Engine destroyed. 00993_ Destroyed Mak. Sword. 00999_ Wheel destroyed. 01003_ as-28161 destroyed. 01005_ Wheel destroyed. 01006_ Acquired 5 matter. 01009_ as-71577 destroyed. 01011_ Machine disabled. 01011_ as-80730 destroyed. Map ----- +----------------------------------------------------+ | ?????????????????????????????????????????# | | ?????????????????????????????????????????#" | | ?????????????????????????????????????????#"""" | | ?????????????????????????????????????????#"" | | ?????????????????????????????????????????#" | | ?????????????????????????????????????????#""" | | ?????????????????????????????????????????## | | ??????????????????????????????????????????#"" | | ??????????????????????????????????????????##""" | | ???????????????????????????????????????????##"""" | | ????????????????????????????????????????????### | | ??????????????????????????????????????????????#### | | ?????????????????????????????????????????????????? | | ?????????????????????????????????????????????????? | | ?????????????????????????????????????????????????? | | ?????????????????????????????????????????????????? | | ??????????????????#########??????#???????#####???? | | ??????????????????#"""""""#????""""""#???""""""??? | | ??????????????????#"" ""#???"""""""#???"""""""#? | | ??????????????????#" "#???""""" "#??#" """"#? | | ??????????????????#"" ""#""#""" """#???"" """#? | | ??????????????????#"" ""#""#"" ""????"" ""?? | | ?????????????########"" ###""###"""########"""#### | | ?????????????#"""" "" """"""" """""""" """" | | ?????????????#" """""" """"""" | | ?????????????#""" @a% a | | ?????????????#"""" %% a z | | ?????????????#"" a | | ?????????????#""" "" "" | | ?????????????#"" """ """" " " """"" " "" | | ?????????????########"""########"""###""###"""#### | | ???????????????????"" "?????"" ""#""#"" ""?? | | ??????????????????#""" """???#""" ""#""#""" ""?? | | ??????????????????#" """ "???#" """"""""#" " "?? | | ???????????????????"""""""????"""""""#""#"""""""#? | | ????????????????????"""""??????"""""??????""""""#? | | ?????????????????????????????????????????????????? | | ?????????????????????????????????????????????????? | | ?????????????????????????????????????????????????? | | ?????????????????????????????????????????????????? | | ?????????????????????????????????????????????????? | | | | | | | | | | | | | | | | | | | +----------------------------------------------------+ Best States ------------- Heat Dissipation 39 Energy Generation 14 Energy Capacity 250 Matter Stores 300 Matter Capacity 300 Sight Range 16 Terrain Scan Range 16 Terrain Scan Density 10 Resistance: KI 20 Resistance: TH 20 Resistance: EX 20 Resistance: EM 20 Resistance: I 20 Resistance: S 20 Resistance: P 20 Evasion (%) 44 Offensive Hacking 10 Item Schematics ----------------- None Robot Schematics ------------------ None Fabricated ------------ Nothing Alien Tech Used ----------------- None Achievements -------------- None Challenges ------------ None Game ------ Seed VortexCombatDrive Manual? 0 Play Time 00:10:04 Cumulative 112.5 hours Start 2023.05.13 @ 18:10:40 End 2023.05.13 @ 18:20:58 Sessions 1 Manual Loads 0 Difficulty Adventurer Special Mode None Game No. 64 Rogue 25 Adventurer 39 Explorer 0 Win Type - Total 6 Types 5/0/0/1/0/0/0/0/0 Lore% 57 Gallery% 66 Achievement% 51 Wizard Run 0 Options --------- ASCII 0 Keyboard 0 Movement Numpad Keybinds 0 Fullscreen 1 Font 24/Smallcaps Map View 76x50 Tactical HUD 1 Map Filters NONE Filters NONE Steam 1 RUN: 1ae07712-ae41-4b85-b197-ec23512f0e08